Cogmind - Beta 13 @@@ ROGUE MODE // 2024.07.03 @ 21:36:37 // Winter2022/Polymind Player: JackZewap Result: Destroyed by H-55 Commando with Assault Rifle Performance ------------- Evolutions (2) 1000 Regions Visited (6) 1200 Robots Destroyed (9) 45 Value Destroyed (375) 375 Prototype IDs (1) 20 Alien Tech Used (0) 0 Bonus (4922) 4922 TOTAL SCORE: 7462 Bonus ------- Polymind Skill 3724 Pacifist 470 Follower Combat Kills 28 Entered Garrisons 200 Used RIF Installer 500 Cogmind --------- Core Integrity 0/550 Matter 51/200 Energy 260/260 System Corruption 2% Temperature Cool (0) Movement Walking (120) Location -8/Materials Parts ------- > --- POWER (1) -------- Fission Core > --- PROPULSION (2) --- Flexi-carbon Leg Flexi-carbon Leg > --- UTILITY (3) ------ Targeting Computer Armor Integrity Analyzer > --- WEAPON (1) ------- Bore Cannon > --- INVENTORY (1) ---- (None) Peak State ------------ > --- POWER ------------ Fission Core > --- PROPULSION ------- Flexi-carbon Leg Flexi-carbon Leg > --- UTILITY ---------- Targeting Computer Armor Integrity Analyzer Phase Shifter > --- WEAPON ----------- Bore Cannon > --- INVENTORY -------- (None) [Rating: 30] Favorites ----------- Power Light Ion Engine Engine Light Ion Engine Power Core Fission Core Propulsion Wheel Treads Light Treads Leg Flexi-carbon Leg Wheel Wheel Hover Unit Hover Unit Flight Unit Flight Unit Utility Medium Matter Pod Device Structural Scanner Storage Medium Matter Pod Processor Terrain Scan Processor Hackware Hacking Suite Protection Light Armor Plating Weapon Welding Torch Energy Gun Beam Rifle Ballistic Gun Light Assault Rifle Ballistic Cannon Bore Cannon Special Weapon Welding Torch Special Melee Weapon Datajack Build | -11 -10 -10 -9 -8 -8 -8 ------- Run | Yrd Mat Min Mat Mat Gar Mat Slots Evolved . | . . . . . . . Power . | . . . . . . . Propulsion . | . . . . . . . Utility . | . . . . . . . Weapon . | . . . . . . . Parts Attached . | . . . . . . . Power . | . . . . . . . Engine . | . . . . . . . Core . | . . . . . . . Reactor . | . . . . . . . Propulsion . | . . . . . . . Treads . | . . . . . . . Leg . | . . . . . . . Wheel . | . . . . . . . Hover . | . . . . . . . Flight . | . . . . . . . Utility . | . . . . . . . Device . | . . . . . . . Storage . | . . . . . . . Processor . | . . . . . . . Hackware . | . . . . . . . Protection . | . . . . . . . Artifact . | . . . . . . . Weapon . | . . . . . . . Energy Gun . | . . . . . . . Energy Cannon . | . . . . . . . Ballistic Gun . | . . . . . . . Ballistic Cannon . | . . . . . . . Launcher . | . . . . . . . Special Weapon . | . . . . . . . Impact Weapon . | . . . . . . . Slashing Weapon . | . . . . . . . Piercing Weapon . | . . . . . . . Special Melee Weapon . | . . . . . . . Unidentified Prototypes . | . . . . . . . Parts Lost 5 | . . . 2 2 . 1 Power 2 | . . . 1 1 . . Propulsion 1 | . . . 1 . . . Utility 2 | . . . . 1 . 1 Weapon . | . . . . . . . Highest Loss Streak 2 | . . . 1 2 . 1 To Critical Strikes . | . . . . . . . Average Slot Usage (%) 67 | . 69 86 88 66 . 100 Engine 11 | . 16 16 11 12 . . Core 1 | . . . . . . 14 Treads 2 | . . . . 6 . . Leg 2 | . . . . . . 28 Wheel 18 | . 25 32 18 19 . . Flight 2 | . . . 19 . . . Device 8 | . . 12 13 8 . 14 Storage 7 | . 12 10 4 8 . . Processor 4 | . . 6 4 2 . 28 Ballistic Gun 1 | . . . 11 1 . . Ballistic Cannon 1 | . . . . . . 14 Special Weapon 2 | . . 6 4 2 . . Naked Turns 431 | . 55 14 4 171 187 . Heaviest Build 20 | . 5 6 9 18 20 20 Greatest Support 46 | 3 20 20 32 46 40 40 Greatest Overweight (x) . | . . . . . . . Average Overweight (x) . | . . . . . . . Largest Inventory Capacity 6 | . 1 1 4 6 1 1 Average Capacity . | . . . . 1 . 1 Most Carried 5 | . . . 2 5 . . Average Carried . | . . . . . . . Final Capacity 1 | . . . . . 1 1 Final Carried . | . . . . . . . Class Distribution -------------------- 30% | Worker 26% | Cogmind 13% | Builder 8% | Hunter 5% | Swarmer 5% | Sentry 3% | Hauler Dominant Class ---------------- Worker | -10/Materials Worker | -10/Mines Swarmer | -9/Materials Worker | -8/Materials Cogmind | -8/Garrison Hunter | -8/Materials Resources | -11 -10 -10 -9 -8 -8 -8 ----------- Run | Yrd Mat Min Mat Mat Gar Mat Matter Collected 115 | . . 48 . 53 4 10 Remotely . | . . . . . . . Salvage Created 299 | . . . . 209 . 90 Parts 18 | . . . . 6 . 12 Haulers Intercepted . | . . . . . . . Recyclers Shooed . | . . . . . . . Parts Field Recycled . | . . . . . . . Retrieved Matter . | . . . . . . . Parts Self-Destructed . | . . . . . . . Prevented . | . . . . . . . Kills | -11 -10 -10 -9 -8 -8 -8 ------- Run | Yrd Mat Min Mat Mat Gar Mat Combat Hostiles Destroyed 8 | . . . . 3 . 5 Guns 3 | . . . . 3 . . Cannons 5 | . . . . . . 5 Classes Destroyed 4 | . . . . 1 . 3 Operator 1 | . . . . . . 1 Swarmer 1 | . . . . . . 1 Grunt 5 | . . . . 3 . 2 Duelist 2 | . . . . . . 2 Best Kill Streak 6 | . . . . 3 . 6 Combat Bots Only 5 | . . . . 3 . 5 Max Kills in Single Turn 1 | . . . . 1 . 1 Gunslinging . | . . . . . . . Exploded . | . . . . . . . Melee . | . . . . . . . Uniques/NPCs Destroyed . | . . . . . . . Combat | -11 -10 -10 -9 -8 -8 -8 -------- Run | Yrd Mat Min Mat Mat Gar Mat Hostile Shots Fired 168 | . 2 . 63 71 . 32 Missed 71 | . 1 . 35 21 . 14 Damage Taken 1290 | . 17 . 291 854 . 128 Core 757 | . 17 . 189 531 . 20 Absorbed by Shields . | . . . . . . . Ignored by Resistances 46 | . . . . . . 46 Core Remaining (%) 81 | 100 . 93 52 . . . Volleys Fired 32 | . . . . 11 . 21 Largest 2 | . . . . 2 . 1 Hottest 79 | . . . . 79 . 57 Shots Fired 44 | . . . . 23 . 21 Gun 23 | . . . . 23 . . Cannon 21 | . . . . . . 21 Launcher . | . . . . . . . Special . | . . . . . . . Kinetic 33 | . . . . 12 . 21 Thermal 11 | . . . . 11 . . Explosive . | . . . . . . . Electromagnetic . | . . . . . . . Robot Hit Streak 9 | . . . . 9 . 4 Robot Miss Streak 2 | . . . . 2 . 2 Penetration Max . | . . . . . . . Secondary Targets 1 | . . . . 1 . . Max Gunslinging Chain 1 | . . . . 1 . . Shots Hit Robots 31 | . . . . 17 . 14 Core Hits 24 | . . . . 9 . 15 Critical Kills 4 | . . . . . . 4 Critical Parts Destroyed 3 | . . . . . . 3 Critical Strikes 7 | . . . . . . 7 Destroy 7 | . . . . . . 7 Melee Attacks . | . . . . . . . Impact . | . . . . . . . Slashing . | . . . . . . . Piercing . | . . . . . . . Sneak Attacks . | . . . . . . . Combat Hostiles . | . . . . . . . Follow-up Attacks . | . . . . . . . Damage Inflicted 916 | . . . . 374 . 542 Guns 255 | . . . . 255 . . Cannons 370 | . . . . . . 370 Explosions 172 | . . . . . . 172 Melee . | . . . . . . . Ramming 119 | . . . . 119 . . Kinetic 539 | . . . . 169 . 370 Thermal 86 | . . . . 86 . . Explosive . | . . . . . . . Electromagnetic 172 | . . . . . . 172 Impact . | . . . . . . . Slashing . | . . . . . . . Piercing . | . . . . . . . Highest Corruption 2 | . . . . 2 2 2 Average Corruption 2 | . . . . 2 2 2 Corruption Purged . | . . . . . . . Corruption Blocked . | . . . . . . . Effects 8 | . . . . 5 3 . Message Errors 4 | . . . . 2 2 . Energy Discharges 1 | . . . . 1 . . Data Loss (minor) 1 | . . . . . 1 . Data Loss (major) 1 | . . . . 1 . . Misfires 1 | . . . . 1 . . Overload Shots . | . . . . . . . Overflow Damage 22 | . . . . . . 22 Projectiles 22 | . . . . . . 22 Explosions . | . . . . . . . Melee . | . . . . . . . Knockbacks 4 | . . . . . . 4 Impact . | . . . . . . . Kinetic 4 | . . . . . . 4 Secondary . | . . . . . . . Self-Inflicted Damage 57 | . . . . 57 . . Shots . | . . . . . . . Rammed 42 | . . . . 41 1 . Targets Rammed 42 | . . . . 41 1 . Kicked . | . . . . . . . Crushed . | . . . . . . . Highest Temperature 371 | . 22 . 3 371 . 8 Average Temperature 162 | . 19 . 1 221 . 4 Received Heat Transfer 450 | . 27 . 72 342 . 9 Effects 1 | . . . . 1 . . Energy Bleed 1 | . . . . 1 . . Siege Activations . | . . . . . . . Robots Corrupted . | . . . . . . . Combat Hostiles . | . . . . . . . Parts Fried . | . . . . . . . Impact Corruptions . | . . . . . . . Robots Melted . | . . . . . . . Combat Hostiles . | . . . . . . . Parts Melted . | . . . . . . . Heat Transferred 222 | . . . . 222 . . Parts Sabotaged . | . . . . . . . Parts Stolen . | . . . . . . . Parts Stripped . | . . . . . . . Power Chain Reactions . | . . . . . . . Alert | -11 -10 -10 -9 -8 -8 -8 ------- Run | Yrd Mat Min Mat Mat Gar Mat Peak Influence 268 | . 33 54 268 228 236 265 Initial 113 | . . 12 13 113 105 113 Average 103 | . 22 28 91 126 200 158 Maximum Alert Level 1 | . . . 1 1 1 1 Low Security (%) 80 | 100 100 100 73 88 8 87 Level 1 19 | . . . 26 11 91 12 Level 2 . | . . . . . . . Level 3 . | . . . . . . . Level 4 . | . . . . . . . Level 5 . | . . . . . . . High Security . | . . . . . . . Max Security . | . . . . . . . Squads Dispatched 9 | . 2 1 2 2 . 2 Investigation 5 | . 1 1 1 . . 2 Extermination . | . . . . . . . Reinforcement 4 | . 1 . 1 2 . . Assault . | . . . . . . . Garrison . | . . . . . . . Intercept . | . . . . . . . Searches Triggered . | . . . . . . . Construction Impeded . | . . . . . . . Haulers Reinforced . | . . . . . . . Active Scanning Responses . | . . . . . . . Cargo Convoy Interrupts . | . . . . . . . Stealth | -11 -10 -10 -9 -8 -8 -8 --------- Run | Yrd Mat Min Mat Mat Gar Mat Distress Signals 3 | . . . 2 . . 1 Communications Jammed . | . . . . . . . Distress Signals . | . . . . . . . Times Spotted 60 | . 4 . 33 14 . 9 Peak Tracking Total 17 | . 3 . 17 4 . 4 Tactical Retreats 5 | . . . 3 2 . . Traps | -11 -10 -10 -9 -8 -8 -8 ------- Run | Yrd Mat Min Mat Mat Gar Mat Traps Triggered 3 | . . . . 1 1 1 Indirectly 1 | . . . . . . 1 Trap Hack Attempts . | . . . . . . . Triggered . | . . . . . . . Disarmed . | . . . . . . . Reprogrammed . | . . . . . . . Reused . | . . . . . . . Traps Extracted . | . . . . . . . Installed . | . . . . . . . Triggered . | . . . . . . . Machines | -11 -10 -10 -9 -8 -8 -8 ---------- Run | Yrd Mat Min Mat Mat Gar Mat Machines Disabled 2 | . . . . . . 2 Max in Single Turn 2 | . . . . . . 2 Machines Repaired . | . . . . . . . Machines Dismantled . | . . . . . . . Machines Sabotaged . | . . . . . . . Overloaded Fab Kills . | . . . . . . . Hacking | -11 -10 -10 -9 -8 -8 -8 --------- Run | Yrd Mat Min Mat Mat Gar Mat Machines Accessed 9 | . 1 1 1 2 2 2 Terminals 7 | . 1 . 1 1 2 2 Fabricators . | . . . . . . . Repair Stations . | . . . . . . . Recycling Units . | . . . . . . . Scanalyzers . | . . . . . . . Garrison Access 1 | . . . . 1 . . Total Hacks 24 | . 5 1 3 3 7 5 Successful 10 | . 3 1 1 2 1 2 Failed 14 | . 2 . 2 1 6 3 Catastrophic 4 | . . . . 1 1 2 Database Lockouts . | . . . . . . . Manual 14 | . 4 . 3 2 . 5 Terminals 22 | . 5 . 3 2 7 5 Fabricators . | . . . . . . . Repair Stations . | . . . . . . . Recycling Units . | . . . . . . . Scanalyzers . | . . . . . . . Garrison Access 1 | . . . . 1 . . Terminal Hacks 5 | . 1 1 . 1 1 1 Open Door 2 | . . 1 . . 1 . Terminal Index 1 | . . . . . . 1 Alert Level 1 | . 1 . . . . . Maintenance Status 1 | . . . . 1 . . Fabricator Hacks . | . . . . . . . Repair Station Hacks . | . . . . . . . Recycling Unit Hacks . | . . . . . . . Scanalyzer . | . . . . . . . Garrison Access Hacks 1 | . . . . 1 . . Unlock Access 1 | . . . . 1 . . Unauthorized Hacks 4 | . 2 . 1 . . 1 Terminals 4 | . 2 . 1 . . 1 Assimilate 1 | . . . 1 . . . Botnet 2 | . 1 . . . . 1 Operators 1 | . 1 . . . . . Fabricators . | . . . . . . . Repair Stations . | . . . . . . . Recycling Units . | . . . . . . . Scanalyzers . | . . . . . . . Garrison Access . | . . . . . . . Data Cores Recovered 1 | . . . . . . 1 Used 1 | . . . . . . 1 Hacking Detections 8 | . 1 . 1 2 2 2 Full Trace Events 4 | . 1 . 1 1 . 1 Feedback Events . | . . . . . . . Feedback Blocked . | . . . . . . . Robot Schematics Acquired . | . . . . . . . Robots Built . | . . . . . . . Authchips . | . . . . . . . Time . | . . . . . . . Total Robot Build Rating . | . . . . . . . Part Schematics Acquired . | . . . . . . . Parts Built . | . . . . . . . Authchips . | . . . . . . . Time . | . . . . . . . Total Part Build Rating . | . . . . . . . Parts Repaired . | . . . . . . . Time . | . . . . . . . Parts Recycled . | . . . . . . . Recycled Matter . | . . . . . . . Retrieved Matter . | . . . . . . . Retrieved Components . | . . . . . . . Parts Scanalyzed . | . . . . . . . Part Schematics Acquired . | . . . . . . . Parts Damaged . | . . . . . . . Bothacking | -11 -10 -10 -9 -8 -8 -8 ------------ Run | Yrd Mat Min Mat Mat Gar Mat Used RIF Installer 1 | . . . . . 1 . Robots Hacked 8 | . 1 1 2 4 . . Non-combat 6 | . 1 1 1 3 . . Combat 2 | . . . 1 1 . . Robot Hacks Applied 9 | . 1 1 2 5 . . map_walls 3 | . . 1 . 2 . . locate_stockpiles 1 | . . . . 1 . . find_recycling 1 | . . . 1 . . . find_terminals 1 | . 1 . . . . . find_shortcuts 2 | . . . 1 1 . . find_garrison 1 | . . . . 1 . . Relay Couplers Released . | . . . . . . . Fabnet Peak Effective % . | . . . . . . . Robots Rewired 2 | . . . . . 2 . Allies Hacked . | . . . . . . . Hacks Repelled . | . . . . . . . Allies | -11 -10 -10 -9 -8 -8 -8 -------- Run | Yrd Mat Min Mat Mat Gar Mat Total Allies 6 | . . 3 . . 3 . Largest Group 3 | . . 3 . . 3 2 Highest-Rated Group 65 | . . 40 . . 65 26 Highest-Rated Ally 39 | . . 16 . . 39 21 Total Orders . | . . . . . . . Ally Attacks 27 | . . 15 . . 4 8 Total Damage 243 | . . 107 . . 47 89 Kills 5 | . . 3 . . 1 1 Allies Corrupted . | . . . . . . . Allies Melted . | . . . . . . . Intel | -11 -10 -10 -9 -8 -8 -8 ------- Run | Yrd Mat Min Mat Mat Gar Mat Robot Analysis Total 9 | . 2 1 2 3 1 . Derelict Logs Recovered 1 | . . 1 . . . . Drone Launches . | . . . . . . . Drone Recoveries . | . . . . . . . Exploration | -11 -10 -10 -9 -8 -8 -8 ------------- Run | Yrd Mat Min Mat Mat Gar Mat Turns Passed 1628 | 9 226 261 180 627 194 131 Spaces Moved 1916 | 18 248 337 333 584 321 75 Core 643 | 18 86 27 7 192 313 . Treads 46 | . . . . 46 . . Legs 83 | . . . . . 8 75 Wheels 867 | . 108 310 103 346 . . Hover 54 | . 54 . . . . . Flight 223 | . . . 223 . . . Fastest Speed 37 | 50 50 50 37 50 50 120 Average Speed 68 | 50 64 77 53 76 51 120 Slowest Speed 160 | 50 80 80 100 160 120 120 Overloaded Moves . | . . . . . . . Propulsion Burnouts . | . . . . . . . Robots Hopped 4 | . . . 4 . . . Cave-ins Triggered . | . . . . . . . Exploration Rate (%) 39 | 3 60 74 37 35 60 10 Regions Visited 6 Branch Regions 1 Pre-discovered Areas 1 | . . 1 . . . . Known Exits Taken 1 | . . . . 1 . . Unknown Exits Taken 4 | 1 1 1 1 . . . Scrap Searched 1 | . . 1 . . . . Spaces Dug . | . . . . . . . Terrain Destroyed 5 | . . . . . . 5 Melee . | . . . . . . . Projectile 5 | . . . . . . 5 AOE . | . . . . . . . Terrain Rammed 1 | . . . . 1 . . Walls Destroyed . | . . . . . . . Machines Disabled . | . . . . . . . Actions | -11 -10 -10 -9 -8 -8 -8 --------- Run | Yrd Mat Min Mat Mat Gar Mat Total 2186 | 17 313 336 331 744 349 96 Wait 140 | . 66 . 1 72 1 . Move 1902 | 17 247 336 325 583 319 75 Hop 3 | . . . 3 . . . Pick Up 2 | . . . 2 . . . Fast Attach . | . . . . . . . Attach . | . . . . . . . Detach . | . . . . . . . Swap . | . . . . . . . Drop . | . . . . . . . Fire 32 | . . . . 11 . 21 Melee . | . . . . . . . Ram 42 | . . . . 41 1 . Kick . | . . . . . . . Crush 1 | . . . . 1 . . Escape Stasis . | . . . . . . . Rewire 31 | . . . . 3 28 . Trap . | . . . . . . . Miscellaneous 33 | . . . . 33 . . Route ------- -11/Scrapyard -10/Materials (discovered 2 exits: *Mat / *Min) -10/Mines -9/Materials -8/Materials -8/Garrison -8/Materials History --------- Turn | Location | Event 2 | -11/Scrapyard | Discovered new exit (range 16) 10 | -11/Scrapyard | Entered Materials 38 | -10/Materials | Discovered new exit (range 13) 89 | -10/Materials | Discovered new exit (range 13) 236 | -10/Materials | Entered Mines 293 | -10/Mines | Received a Rocket Launcher from a helpful Derelict 350 | -10/Mines | Assisted by bots powering up and referring to "LRC-V3" 469 | -10/Mines | Learned location of Zion (-6) 477 | -10/Mines | Discovered new exit (range 13) 489 | -10/Mines | Met a Derelict shopkeep closing up shop 497 | -10/Mines | Entered Materials 671 | -9/Materials | Discovered new exit (range 15) 677 | -9/Materials | Entered another Materials area 1246 | -8/Materials | Identified exit to Garrison 1278 | -8/Materials | Core integrity fell below 50% 1293 | -8/Materials | Core integrity fell below 20% 1304 | -8/Materials | Entered Garrison 1304 | -8/Garrison | Discovered recently destroyed garrison 1324 | -8/Garrison | Rescued a captive Derelict 1457 | -8/Garrison | Installed Relay Interface Framework 1461 | -8/Garrison | Discovered new exit (range 14) 1498 | -8/Garrison | Entered Materials 1498 | -8/Materials | Accompanied by 2 allies 1629 | -8/Materials | Destroyed by H-55 Commando with Assault Rifle Last Messages --------------- 01610_ ALERT: Alarm triggered, dispatching investigation squad. 01611_ C-30 ARC bursts open, deploying its payload. 01611_ S-10 Pest unfolds itself. 01612_ HV Slug penetrates S-10 Pest. 01612_ S-10 Pest suffers critical hit (Destroy). 01612_ S-10 Pest destroyed. 01612_ HV Slug penetrates Wall. 01614_ HV Slug penetrates G-47 Trooper. 01614_ G-47 Trooper suffers critical hit (Destroy). 01614_ G-47 Trooper destroyed. 01616_ HV Slug penetrates L-31 Rogue. 01616_ L-31 Rogue destroyed. 01618_ HV Slug penetrates Wall. 01620_ HV Slug penetrates S-10 Pest. 01620_ S-10 Pest knocked back. 01624_ HV Slug penetrates S-10 Pest. 01624_ Destroyed Lgt. Ion Engine. 01624_ Destroyed Flight Unit. 01626_ Slug penetrates Wall. 01628_ Phase Shifter destroyed. Map ----- +----------------------------------------------------+ | ????????????????????????????? | | ????????????????????????????? | | ????????????????????????????? | | ????????????????????????????? | | ????????????????????????????? | | ????????????????????????????? | | ????????????????????????????? | | ????????????????????????????? | | ????????????????????????????? | | ????????????????????????????? | | ????????????????????????????? | | ??????? ????????????????????? | | ?????? ????????????????????? | | ?????? ????????????????????? | | ?????? ????????????????????? | | ???###+##???????????????????? | | ???# ###?????????????????? | | ???# u ??????????????????? | | ???# #??????????????????? | | ???# #??????????????????? | | ???# #??????????????????? | | ???# #??????????????????? | | ???# #??????????????????? | | ???# #??????????????????? | | ???# #??????????????????? | | ???#h #?????? ??????????? | | ???# !=#######+##?????????? | | ???# ^!%!%% ! ????????? | | ???# [%=*[^ / ????????? | | ???# =[ = = ==h% ????????? | | ???# ![##?????????? | | ???# ;??????????? | | ???# s #??????????? | | ???# s% #??????????? | | ???# % #??????????? | | ######### ##;###+#??????????? | | # ?### ###!??????????????? | | #""" # # ??????????????? | | #""" # #???????????????? | | #""" + T +???????????????? | | # # #???????????????? | | # # #???????????????? | | # ?### ###???????????????? | | #####???# #?????????????????? | | ######??# #?????????????????? | | # !#??# #?????????????????? | | #!! #??# #?????????????????? | | #! #### ####??????????????? | | # / +??????????????? | | #* "# ##### #??????????????? | +----------------------------------------------------+ Best States ------------- Heat Dissipation 37 Energy Generation 23 Energy Capacity 260 Matter Stores 186 Matter Capacity 200 Sight Range 16 Terrain Scan Range 16 Terrain Scan Density 85 Additional Mass Support 6 Armor Coverage 150 Resistance: KI 25 Resistance: EX 50 Resistance: I 25 Phase Shifting 5 Evasion (%) 62 Targeting Accuracy 5 Armor Integrity Analysis 30 Recoil Reduction 2 Offensive Hacking 10 Item Schematics ----------------- None Robot Schematics ------------------ None Fabricated ------------ Nothing Alien Tech Used ----------------- None Achievements -------------- Fearless Challenges ------------ None Polymind | -11 -10 -10 -9 -8 -8 -8 ---------- Run | Yrd Mat Min Mat Mat Gar Mat Hosts 14 | . 2 2 2 7 1 . Combat Hostiles 2 | . . . 1 1 . . Allies 1 | . . . . . 1 . Unique Host Classes 9 | . 2 1 2 3 1 . Average Host Suspicion 57 | . 67 30 64 62 . 68 Unsuspicious Activity 643 | . 79 100 2 454 8 . Returns to Shadow 1 | . . . . 1 . . Fuzzy Dispatches . | . . . . . . . Protomatter Created 79 | . . 31 . . 5 43 Used 100 | . 10 10 11 53 16 . Decayed 12 | . . 11 . . . 1 Highest Spend 23 | . 5 5 6 23 16 . Top 5 Hosts by Kills: AS-W56(h) (-8/Garrison: 5) Y-45 Defender (-8/Materials: 3) Game ------ Seed WardronePhaseWarhead Manual? 0 Play Time 00:17:55 Cumulative 114.2 hours Start 2024.07.03 @ 21:19:30 End 2024.07.03 @ 21:36:37 Sessions 1 Manual Loads 0 Difficulty Rogue Special Mode Winter2022/Polymind Game No. 135 Rogue 129 Adventurer 6 Explorer 0 Win Type - Total 1 Types 1/0/0/0/0/0/0/0/0 Lore% 38 Gallery% 61 Achievement% 44 Wizard Run 0 Options --------- Layout 0 ASCII 0 Keyboard 1 Movement Numpad Keybinds 0 Fullscreen 0 Font 14/Smallcaps Map View 76x50 Zoom Use 0% Tactical HUD 1 Map Filters NONE Filters NONE Steam 1 RUN: 9bb96fea-afca-4074-a0e7-b515f6018176